bitfinex/quotes_BTCUSD_20250221
["timestamp","ask_amount","ask_price","bid_price","bid_amount"]
[1740156098867,0.00414743,98756.0,98755.0,0.158891]
[1740156099009,0.00414743,98756.0,98755.0,0.165891]
[1740156099210,0.00414743,98756.0,98755.0,0.155891]
[1740156099674,0.00414743,98756.0,98755.0,0.162891]
[1740156100072,0.00414743,98756.0,98755.0,0.007]
[1740156100073,0.15603643,98756.0,98755.0,0.007]
[1740156100967,0.20666743,98756.0,98746.0,0.202538]
[1740156101156,0.20666743,98756.0,98740.0,0.12901869]
[1740156101157,0.00414743,98756.0,98755.0,0.005]
[1740156101360,0.00414743,98756.0,98742.0,0.10264569]
[1740156101565,0.00414743,98756.0,98755.0,0.003]
[1740156101696,0.15603643,98756.0,98755.0,0.006]
[1740156101884,0.00414743,98756.0,98748.0,0.202534]
[1740156102093,0.00414743,98756.0,98753.0,0.151894]
[1740156102323,0.00414743,98756.0,98747.0,0.202537]
[1740156102732,0.00097951,98756.0,98755.0,0.151891]
[1740156102932,0.00097951,98756.0,98755.0,0.25853669]
[1740156103821,0.00414707,98756.0,98755.0,0.25853669]
[1740156104228,0.00414707,98756.0,98755.0,0.41907754]
[1740156104675,7e-08,98756.0,98755.0,0.41907754]
[1740156104809,7e-08,98756.0,98755.0,5.30336654]
[1740156105011,7e-08,98756.0,98755.0,0.50547754]
[1740156105213,7e-08,98756.0,98755.0,0.50347754]
[1740156105489,0.0002,98769.0,98768.0,0.151871]
[1740156105700,0.0006316,98769.0,98768.0,0.25451669]
[1740156107739,0.0006316,98769.0,98768.0,0.26151669]
[1740156107952,0.0006316,98769.0,98768.0,0.26851669]
[1740156108155,0.0006316,98769.0,98768.0,0.26151669]
[1740156108366,0.0006316,98769.0,98768.0,0.26906942]
[1740156108570,0.0006316,98769.0,98768.0,0.26206942]
[1740156108782,0.0006316,98769.0,98768.0,0.26806942]
[1740156108988,0.0006316,98769.0,98768.0,0.27506942]
[1740156109190,0.0006316,98769.0,98768.0,0.26906942]
[1740156109646,0.0006316,98769.0,98768.0,0.27606942]
[1740156110326,0.0006316,98769.0,98768.0,0.26906942]
[1740156110694,0.0006316,98769.0,98768.0,0.27606942]
[1740156110926,0.0006316,98769.0,98768.0,0.26906942]
[1740156111236,0.0006316,98769.0,98768.0,0.27606942]
[1740156111690,0.0006316,98769.0,98768.0,0.26906942]
[1740156112095,0.0006316,98769.0,98768.0,0.27606942]
[1740156112302,0.0014807,98769.0,98768.0,0.27606942]
[1740156113826,0.0014807,98769.0,98768.0,0.11664569]
[1740156114033,0.0014807,98769.0,98768.0,0.014]
[1740156114244,0.0014807,98769.0,98768.0,0.26851669]
[1740156114453,0.0014807,98769.0,98768.0,0.34581669]
[1740156114660,0.0014807,98769.0,98768.0,0.33881669]
[1740156114865,0.0014807,98769.0,98768.0,0.33181669]
[1740156115313,0.0014807,98769.0,98768.0,0.33881669]
[1740156115428,0.0014807,98769.0,98768.0,0.33181669]
[1740156115632,0.0014807,98769.0,98768.0,0.33881669]
[1740156116134,0.0014807,98769.0,98768.0,0.33181669]
[1740156116382,0.0014807,98769.0,98768.0,0.25451669]
[1740156117422,0.0014807,98769.0,98768.0,0.26151669]
[1740156117627,0.0014807,98769.0,98768.0,0.25451669]
[1740156118067,0.0014807,98769.0,98768.0,0.26851669]
[1740156118265,0.0014807,98769.0,98768.0,0.26151669]
[1740156118395,0.0014807,98769.0,98768.0,0.25451669]
[1740156118596,0.0014807,98769.0,98768.0,0.26851669]
[1740156118818,0.0014807,98769.0,98768.0,0.26151669]
[1740156119018,0.0014807,98769.0,98768.0,0.014]
[1740156119325,0.0014807,98769.0,98768.0,0.158871]
[1740156119543,0.0014807,98769.0,98768.0,0.165871]
[1740156119728,0.0014807,98769.0,98768.0,1.18049971]
[1740156120450,0.0014807,98769.0,98768.0,1.17349971]
[1740156120693,0.0014807,98769.0,98768.0,0.014]
[1740156120820,0.151881,98762.0,98751.0,0.08120714]
[1740156121016,0.202496,98767.0,98752.0,0.10264569]
[1740156121235,0.202496,98767.0,98755.0,0.151889]
[1740156121441,0.0774,98768.0,98753.0,0.202525]
[1740156121646,0.15504133,98766.0,98760.0,0.151883]
[1740156122016,0.151875,98765.0,98759.0,0.151884]
[1740156122434,0.00316733,98766.0,98755.0,0.002]
[1740156122591,0.00316733,98766.0,98763.0,0.151878]
[1740156122934,0.00416733,98766.0,98755.0,0.002]
[1740156123160,0.00416733,98766.0,98763.0,0.151878]
[1740156123332,0.00316733,98765.0,98757.0,0.202517]
[1740156123500,0.00316733,98765.0,98757.0,0.30516269]
[1740156123705,0.00316733,98765.0,98762.0,0.151879]
[1740156123927,0.00316733,98765.0,98760.0,0.206511]
[1740156124089,0.00316733,98765.0,98761.0,0.15188]
[1740156124290,0.00316733,98765.0,98762.0,0.151879]
[1740156124498,0.00633566,98764.0,98762.0,0.151879]
[1740156124703,0.00633566,98764.0,98761.0,0.15188]
[1740156124910,0.00633566,98764.0,98762.0,0.151879]
[1740156125115,0.00633566,98764.0,98763.0,0.151878]
[1740156125324,0.00316733,98763.0,98761.0,0.203509]
[1740156125524,0.00316733,98763.0,98762.0,0.15588]
[1740156126126,0.00316733,98763.0,98762.0,0.006]
[1740156126337,0.15504533,98763.0,98762.0,0.006]
[1740156126546,0.85489102,98763.0,98762.0,0.006]
[1740156126749,0.151954,98714.0,98713.0,0.10008845]
[1740156126952,0.151954,98714.0,98713.0,0.09013588]
[1740156127199,0.0825,98728.0,98714.0,0.09013588]
[1740156127437,0.15194,98723.0,98714.0,0.09013588]
[1740156127651,0.151941,98723.0,98714.0,0.09013588]
[1740156127834,0.0825,98728.0,98714.0,0.09013588]
[1740156128173,0.151947,98719.0,98714.0,0.09026539]
[1740156128386,0.151946,98720.0,98714.0,0.09126539]
[1740156128653,0.202584,98725.0,98714.0,0.09126539]
[1740156128910,0.151947,98719.0,98714.0,0.09026539]
[1740156129101,0.151946,98719.0,98714.0,0.09026539]
[1740156129357,0.0825,98728.0,98714.0,0.09026539]
[1740156129358,0.151948,98718.0,98714.0,0.09026539]
[1740156129573,0.202578,98727.0,98714.0,0.09026539]
[1740156129761,0.151949,98717.0,98714.0,0.09026539]
[1740156129974,0.15195,98717.0,98714.0,0.09026539]
[1740156130199,0.15195,98717.0,98714.0,0.09226539]
[1740156130407,0.151952,98715.0,98714.0,0.09026539]
[1740156130519,0.202578,98727.0,98714.0,0.09026539]
[1740156130725,0.151948,98718.0,98714.0,0.09126539]
[1740156130953,0.151948,98718.0,98714.0,0.09026539]
[1740156131155,0.151948,98718.0,98714.0,0.09426539]
[1740156131349,0.15195,98717.0,98714.0,0.09426539]
[1740156131585,0.0825,98728.0,98714.0,0.09226539]
[1740156131789,0.151951,98716.0,98714.0,0.00212951]
[1740156131987,0.151952,98715.0,98714.0,0.00212951]
[1740156132192,0.0825,98728.0,98714.0,0.00212951]
[1740156132390,0.151952,98715.0,98714.0,0.00312951]
[1740156132598,0.0825,98728.0,98714.0,0.00112951]
[1740156132819,0.151951,98716.0,98714.0,0.00112951]
[1740156133015,0.151952,98715.0,98714.0,0.00112951]
[1740156133629,0.151952,98715.0,98714.0,0.00012951]
[1740156133926,0.151952,98715.0,98714.0,0.00512951]
[1740156134125,0.151952,98715.0,98714.0,0.00112951]
[1740156134456,0.151952,98715.0,98714.0,0.00312951]
[1740156135171,0.0832,98736.0,98714.0,0.00012951]
[1740156135370,0.01023634,98735.0,98716.0,0.08120714]
[1740156135626,0.151952,98715.0,98714.0,0.00312951]
[1740156136710,0.2411863,98715.0,98714.0,0.00312951]
[1740156136910,0.2411863,98715.0,98714.0,0.00012951]
[1740156137128,0.49383199,98715.0,98714.0,0.00312951]
[1740156137554,1.71251301,98715.0,98714.0,0.00012951]
[1740156137750,1.69797216,98715.0,98714.0,0.00312951]
[1740156137950,1.70197216,98715.0,98714.0,0.00312951]
[1740156138153,1.70197216,98715.0,98714.0,0.00012951]
[1740156138361,1.69797216,98715.0,98714.0,0.00012951]
[1740156138798,1.70197216,98715.0,98714.0,0.00112951]
[1740156139017,1.70497216,98715.0,98714.0,0.00112951]
[1740156139731,1.73951301,98715.0,98714.0,5.1e-07]
[1740156140170,0.233092,98689.0,98663.0,0.08120714]
[1740156140394,0.383092,98689.0,98688.0,0.00182893]
[1740156141027,1.6738548,98689.0,98688.0,0.00182893]
[1740156141240,1.560892,98689.0,98688.0,0.00182893]
[1740156141453,1.479792,98689.0,98688.0,0.00182893]
[1740156141632,1.480792,98689.0,98688.0,0.00182893]
[1740156141885,1.484792,98689.0,98688.0,0.00182893]
[1740156142579,0.3255,98689.0,98688.0,0.00182893]
[1740156143011,0.3215,98689.0,98688.0,0.00182893]
[1740156143285,0.3205,98689.0,98688.0,0.00182893]
[1740156143530,0.3245,98689.0,98688.0,0.15382293]
[1740156143769,0.004,98689.0,98688.0,0.25646862]
[1740156144009,0.151961,98710.0,98703.0,0.15197]
[1740156144244,0.151961,98710.0,98704.0,0.08120714]
[1740156144482,0.202599,98717.0,98704.0,0.08120714]
[1740156144709,0.01008067,98718.0,98704.0,0.08120714]
[1740156144710,0.151967,98705.0,98704.0,0.08120714]
[1740156144948,0.151984,98695.0,98688.0,0.00282893]
[1740156145150,0.20264,98697.0,98694.0,0.08120714]
[1740156145333,0.202632,98701.0,98694.0,0.08120714]
[1740156145334,0.202603,98715.0,98694.0,0.08120714]
[1740156145615,0.151992,98689.0,98688.0,0.00282893]
[1740156146251,0.151992,98689.0,98688.0,0.00182893]
[1740156147281,0.153992,98689.0,98688.0,0.00182893]
[1740156147611,0.72513769,98689.0,98688.0,0.00182893]
[1740156148050,0.73013769,98689.0,98688.0,0.00382893]
[1740156148251,0.7364794,98689.0,98688.0,0.00182893]
[1740156148460,0.7374794,98689.0,98688.0,0.00182893]
[1740156149136,0.7324794,98689.0,98688.0,0.00182893]
[1740156149786,0.7374794,98689.0,98688.0,0.00182893]
[1740156150008,0.7364794,98689.0,98688.0,0.00182893]
[1740156150222,0.7324794,98689.0,98688.0,0.00182893]
[1740156150639,0.7374794,98689.0,98688.0,0.00182893]
[1740156151563,0.74762664,98689.0,98688.0,0.00182893]
[1740156151978,0.64498095,98689.0,98688.0,0.00182893]
[1740156152907,0.74762664,98689.0,98688.0,0.00182893]
[1740156153107,0.7374794,98689.0,98688.0,0.00182893]
[1740156155559,0.7324794,98689.0,98688.0,0.00182893]
[1740156155844,0.7394794,98689.0,98688.0,0.00282893]
[1740156156043,0.7384794,98689.0,98688.0,0.00282893]
[1740156156252,0.7354794,98689.0,98688.0,0.00182893]
[1740156156457,0.7424794,98689.0,98688.0,9.3e-07]
[1740156157017,0.7384794,98689.0,98688.0,9.3e-07]
[1740156157396,0.7424794,98689.0,98688.0,9.3e-07]
[1740156159089,0.63983371,98689.0,98688.0,9.3e-07]
[1740156160290,0.63583371,98689.0,98688.0,0.00170293]
[1740156160495,0.64698006,98689.0,98688.0,0.00170293]
[1740156160746,0.64598006,98689.0,98688.0,0.00170293]
[1740156160917,0.63898006,98689.0,98688.0,0.001702]
[1740156161131,0.63998006,98689.0,98688.0,0.001702]
[1740156161963,0.62983371,98689.0,98688.0,0.001702]
[1740156162116,0.63483371,98689.0,98688.0,0.001702]
[1740156162317,0.63383371,98689.0,98688.0,0.001702]
[1740156162511,0.62883371,98689.0,98688.0,0.001702]
[1740156162754,0.62983371,98689.0,98688.0,0.001702]
[1740156163066,0.63383371,98689.0,98688.0,0.001702]
[1740156163283,0.63483371,98689.0,98688.0,0.001702]
[1740156163492,0.62883371,98689.0,98688.0,0.001702]
[1740156163701,0.63283371,98689.0,98688.0,0.001702]
[1740156163903,0.63383371,98689.0,98688.0,0.001702]
[1740156165079,0.62983371,98689.0,98688.0,0.001702]
[1740156165319,0.63741001,98689.0,98688.0,0.001702]
[1740156165521,0.64041001,98689.0,98688.0,0.001702]
[1740156165776,0.64041001,98689.0,98688.0,0.002702]
[1740156165981,0.63641001,98689.0,98688.0,0.001702]
[1740156166271,0.64041001,98689.0,98688.0,0.001702]
[1740156166760,0.63641001,98689.0,98688.0,0.001702]
[1740156166900,0.64041001,98689.0,98688.0,0.001702]
[1740156167311,0.7430557,98689.0,98688.0,0.001702]
[1740156168118,0.7390557,98689.0,98688.0,0.001702]
[1740156168477,0.7430557,98689.0,98688.0,0.001702]
[1740156168928,0.7390557,98689.0,98688.0,0.001702]
[1740156169106,0.8183557,98689.0,98688.0,0.001702]
[1740156169315,0.8223557,98689.0,98688.0,0.001702]
[1740156169538,0.8233557,98689.0,98688.0,0.001702]
[1740156169868,0.8183557,98689.0,98688.0,0.001702]
[1740156170078,0.8243557,98689.0,98688.0,0.001702]
[1740156171185,0.7450557,98689.0,98688.0,0.001702]
[1740156171377,0.77667379,98689.0,98688.0,0.001702]
[1740156171787,0.77167379,98689.0,98688.0,0.001702]
[1740156171992,0.77067379,98689.0,98688.0,0.001702]
[1740156172197,0.77667379,98689.0,98688.0,0.001702]
[1740156172404,0.77567379,98689.0,98688.0,0.001702]
[1740156172623,0.77067379,98689.0,98688.0,0.001702]
[1740156172836,0.77252499,98689.0,98688.0,0.001702]
[1740156173038,0.6738793,98689.0,98688.0,0.001702]
[1740156173248,0.667303,98689.0,98688.0,0.001702]
[1740156173460,0.662303,98689.0,98688.0,0.001702]
[1740156173675,0.661303,98689.0,98688.0,0.001702]
[1740156173893,0.76494869,98689.0,98688.0,0.001702]
[1740156174105,0.80994869,98689.0,98688.0,0.001702]
[1740156174532,0.80360698,98689.0,98688.0,0.001702]
[1740156175151,0.80260698,98689.0,98688.0,0.001702]
[1740156175351,0.80360698,98689.0,98688.0,0.001702]
[1740156175802,0.80760698,98689.0,98688.0,0.001702]
[1740156176013,0.80860698,98689.0,98688.0,0.001702]
[1740156176714,0.77698889,98689.0,98688.0,0.001702]
[1740156177350,0.80861297,98689.0,98688.0,0.001702]
[1740156177675,0.77698889,98689.0,98688.0,0.001702]
[1740156178169,0.73198889,98689.0,98688.0,0.001702]
[1740156178395,0.7636167,98689.0,98688.0,0.001702]
[1740156178597,0.73198889,98689.0,98688.0,0.001702]
[1740156179207,0.73098889,98689.0,98688.0,0.001702]
[1740156179384,0.75763313,98689.0,98688.0,0.001702]
[1740156179581,1.62093313,98689.0,98688.0,0.001702]
[1740156180018,1.61993313,98689.0,98688.0,0.001702]
[1740156180244,1.61593313,98689.0,98688.0,0.001702]
[1740156180424,1.62093313,98689.0,98688.0,0.001702]
[1740156180793,1.72357882,98689.0,98688.0,0.001702]
[1740156181002,1.75811967,98689.0,98688.0,1e-06]
[1740156181207,1.75582805,98689.0,98688.0,1e-06]
[1740156181823,1.75482805,98689.0,98688.0,1e-06]
[1740156181995,1.79682805,98689.0,98688.0,1e-06]
[1740156182241,0.302041,98657.0,98633.0,0.0787]
[1740156182445,0.622541,98657.0,98656.0,0.0021321]
[1740156182631,0.65418524,98657.0,98656.0,0.0021321]
[1740156182935,0.622541,98657.0,98656.0,0.0021321]
[1740156183529,0.6327102,98657.0,98656.0,0.0021321]
[1740156184006,0.6347102,98657.0,98656.0,0.0021321]
[1740156184792,0.6347102,98657.0,98656.0,0.0031321]
[1740156184998,0.73735589,98657.0,98656.0,0.0021321]
[1740156185206,0.76698982,98657.0,98656.0,0.0021321]
[1740156185414,0.00776837,98638.0,98618.0,0.0789]
[1740156185635,0.152105,98616.0,98615.0,0.0017012]
[1740156185809,0.152105,98616.0,98615.0,0.00183075]
[1740156188092,0.152105,98616.0,98615.0,0.00683075]
[1740156189250,0.152105,98616.0,98615.0,0.00883075]
[1740156190274,0.152105,98616.0,98615.0,0.00683075]
[1740156191317,0.152105,98616.0,98615.0,0.00183075]
[1740156191807,0.152105,98616.0,98615.0,0.00383075]
[1740156191808,0.40475069,98616.0,98615.0,0.00383075]
[1740156192465,0.40575069,98616.0,98615.0,0.00183075]
[1740156192821,0.40975069,98616.0,98615.0,0.00283075]
[1740156193013,0.41675069,98616.0,98615.0,0.00283075]
[1740156193614,0.40975069,98616.0,98615.0,0.00283075]
[1740156193813,0.41675069,98616.0,98615.0,0.00283075]
[1740156194017,0.41175069,98616.0,98615.0,0.00183075]
[1740156194223,0.41575069,98616.0,98615.0,0.00183075]
[1740156194464,1.59355069,98616.0,98615.0,0.00183075]
[1740156200565,0.73625069,98616.0,98615.0,0.00183075]
[1740156201196,0.633605,98616.0,98615.0,0.00183075]
[1740156201369,0.483605,98616.0,98615.0,0.00183075]
[1740156202251,0.476605,98616.0,98615.0,0.00183075]
[1740156202525,0.481605,98616.0,98615.0,0.00183075]
[1740156203307,0.477605,98616.0,98615.0,0.00183075]
[1740156203715,0.478605,98616.0,98615.0,0.00183075]
[1740156212512,0.3265,98616.0,98615.0,0.08323075]
[1740156212736,0.3265,98616.0,98615.0,0.31654389]
[1740156212945,0.3265,98616.0,98615.0,0.16443789]
[1740156213446,0.3265,98616.0,98615.0,0.31654389]
[1740156213625,0.3205,98616.0,98615.0,0.31654389]
[1740156213846,0.152094,98623.0,98615.0,0.16743789]
[1740156214043,0.152094,98623.0,98616.0,0.152104]
[1740156214249,0.152096,98622.0,98616.0,0.152104]
[1740156214485,0.202769,98634.0,98615.0,0.16843789]
[1740156214748,0.152096,98622.0,98615.0,0.31954289]
[1740156214960,0.002,98623.0,98617.0,0.152103]
[1740156215383,0.01012399,98644.0,98615.0,0.16743789]
[1740156215595,0.01012399,98644.0,98631.0,0.0787]
[1740156215808,0.01012399,98644.0,98632.0,0.202773]
[1740156216025,0.01012399,98644.0,98615.0,0.08303789]
[1740156216026,0.202751,98643.0,98622.0,0.0787]
[1740156216229,0.01012399,98644.0,98622.0,0.0787]
[1740156216230,0.152086,98628.0,98627.0,0.08120714]
[1740156217446,0.152086,98628.0,98627.0,0.08320714]
[1740156221137,0.156086,98628.0,98627.0,0.08320714]
[1740156221679,0.25473169,98628.0,98627.0,0.002]
[1740156221891,1.43253169,98628.0,98627.0,0.002]
[1740156222126,0.152105,98616.0,98605.0,0.15990714]
[1740156223096,0.16246334,98616.0,98615.0,0.00183075]
[1740156223317,0.28311247,98616.0,98615.0,0.00183075]
[1740156223688,0.42036754,98616.0,98615.0,0.00383075]
[1740156223899,0.45198821,98616.0,98615.0,0.00383075]
[1740156224432,0.45498821,98616.0,98615.0,0.00383075]
[1740156224883,0.45198821,98616.0,98615.0,0.00383075]
[1740156225091,0.45198821,98616.0,98615.0,0.00183075]
[1740156225379,0.45898821,98616.0,98615.0,0.00183075]
[1740156225798,0.15,98615.0,98589.0,0.0017012]
[1740156226012,0.152145,98590.0,98589.0,0.00183086]
[1740156226222,0.152145,98590.0,98586.0,0.06783086]
[1740156226446,0.152145,98590.0,98586.0,0.06796057]
[1740156226655,0.8573,98613.0,98586.0,0.0782127]
[1740156226881,0.152137,98595.0,98586.0,0.2303627]
[1740156227096,0.3205,98612.0,98586.0,0.0782127]
[1740156227310,0.152136,98596.0,98595.0,0.08120714]
[1740156228556,0.154136,98596.0,98595.0,0.08120714]
[1740156228767,0.152149,98587.0,98586.0,0.06796057]
[1740156228976,0.152149,98587.0,98586.0,0.00012971]
[1740156230020,0.152149,98587.0,98586.0,0.00412971]
[1740156230666,0.152149,98587.0,98586.0,0.00612971]
[1740156231083,0.152149,98587.0,98586.0,0.00783391]
[1740156231291,0.152149,98587.0,98586.0,0.00583391]
[1740156231496,0.154149,98587.0,98586.0,0.00183391]
[1740156231904,0.154149,98587.0,98586.0,0.00283391]
[1740156232135,0.474649,98587.0,98586.0,0.00283391]
[1740156232348,0.72729469,98587.0,98586.0,0.00283391]
[1740156232768,0.77269469,98587.0,98586.0,0.00283391]
[1740156232982,0.85089469,98587.0,98586.0,0.00283391]
[1740156233193,0.88049198,98587.0,98586.0,0.00183391]
[1740156233402,0.88349198,98587.0,98586.0,0.00183391]
[1740156233626,0.85189469,98587.0,98586.0,0.00183391]
[1740156233840,0.85889469,98587.0,98586.0,0.00183391]
[1740156236048,1.7582332,98587.0,98586.0,0.00183391]
[1740156236536,1.74369235,98587.0,98586.0,0.00183391]
[1740156236751,1.59259469,98587.0,98586.0,0.00183391]
[1740156239504,0.632649,98587.0,98586.0,0.00183391]
[1740156239716,0.482649,98587.0,98586.0,0.00183391]
[1740156243255,0.3305,98587.0,98586.0,0.00183391]
[1740156243463,0.3305,98587.0,98586.0,0.08413391]
[1740156243865,0.3235,98587.0,98586.0,0.08413391]
[1740156244065,0.3235,98587.0,98586.0,0.23628491]
[1740156244267,0.3265,98587.0,98586.0,0.23628491]
[1740156244845,0.3235,98587.0,98586.0,0.23628491]
[1740156245272,0.004,98587.0,98586.0,0.3876306]
[1740156245482,0.3205,98615.0,98606.0,0.13]
[1740156245679,0.09093681,98627.0,98615.0,0.152106]
[1740156245905,0.24302581,98627.0,98615.0,0.152106]
[1740156246106,0.202792,98623.0,98614.0,0.08120714]
[1740156246309,0.202801,98619.0,98614.0,0.08120714]
[1740156246460,0.152106,98615.0,98614.0,0.08120714]
[1740156246875,0.152103,98617.0,98614.0,0.08120714]
[1740156247077,0.1521,98619.0,98614.0,0.08120714]
[1740156247314,0.29372081,98627.0,98614.0,0.08120714]
[1740156247518,0.20279,98624.0,98614.0,0.08120714]
[1740156247896,0.09093681,98627.0,98615.0,0.002]
[1740156248104,0.09093681,98627.0,98614.0,0.23331414]
[1740156248322,0.09093681,98627.0,98614.0,0.152107]
[1740156248527,0.1529571,98616.0,98614.0,0.002]
[1740156248753,0.0008521,98616.0,98607.0,0.202825]
[1740156248990,0.0008521,98616.0,98615.0,0.002]
[1740156249415,0.0008521,98616.0,98613.0,0.152109]
[1740156249629,0.0008521,98616.0,98614.0,0.004]
[1740156249836,0.0008521,98616.0,98606.0,0.13]
[1740156249837,0.0008521,98616.0,98610.0,0.202818]
[1740156250084,0.0008521,98616.0,98613.0,0.152109]
[1740156250513,0.0008521,98616.0,98606.0,0.13]
[1740156250915,0.0008521,98616.0,98611.0,0.152112]
[1740156251121,0.0008521,98616.0,98606.0,0.13]
[1740156251346,0.0008521,98616.0,98615.0,0.003]
[1740156251770,0.0008521,98616.0,98608.0,0.202821]
[1740156251965,0.0008521,98616.0,98609.0,0.152115]
[1740156252200,0.0008521,98616.0,98606.0,0.25925277]
[1740156252647,0.0008521,98616.0,98615.0,0.002]
[1740156252855,0.0008521,98616.0,98614.0,0.152107]
[1740156253062,0.0008521,98616.0,98609.0,0.003]
[1740156253269,0.0008521,98616.0,98611.0,0.152111]
[1740156253479,0.0008521,98616.0,98609.0,0.003]
[1740156253675,0.0008521,98616.0,98613.0,0.152109]
[1740156253895,0.0008521,98616.0,98611.0,0.152111]
[1740156254099,0.0008521,98616.0,98610.0,0.152113]
[1740156254304,0.0008521,98616.0,98606.0,0.25925277]
[1740156254707,0.0008521,98616.0,98608.0,0.152117]
[1740156255199,0.0008521,98616.0,98611.0,0.152112]
[1740156255333,0.0008521,98616.0,98610.0,0.003]
[1740156255578,0.0008521,98616.0,98606.0,0.25925277]
[1740156255781,0.0008521,98616.0,98608.0,0.003]
[1740156255983,0.0008521,98616.0,98608.0,0.155117]
[1740156256192,0.0008521,98616.0,98608.0,0.152117]
[1740156256423,0.0008521,98616.0,98611.0,0.003]
[1740156256637,0.152106,98615.0,98611.0,0.003]
[1740156256844,0.0008521,98616.0,98611.0,0.003]
[1740156257055,0.1529581,98616.0,98611.0,0.003]
[1740156257258,0.0008521,98616.0,98611.0,0.003]
[1740156257678,0.0008521,98616.0,98606.0,0.13]
[1740156257679,0.152107,98615.0,98606.0,0.13]
[1740156257892,0.152107,98615.0,98606.0,0.28212]
[1740156258104,0.0008521,98616.0,98607.0,0.152118]
[1740156258314,0.152107,98615.0,98606.0,0.13]
[1740156258518,0.152106,98615.0,98608.0,0.003]
[1740156258721,0.0008521,98616.0,98609.0,0.152115]
[1740156258851,0.0008521,98616.0,98606.0,0.332827]
[1740156259063,0.0008521,98616.0,98607.0,0.202825]
[1740156259429,0.0008521,98616.0,98615.0,0.152106]
[1740156259808,0.0008521,98616.0,98606.0,0.26225277]
[1740156260053,0.0008521,98616.0,98615.0,0.152106]
[1740156260318,0.0008521,98616.0,98615.0,0.16241428]
[1740156260529,0.0008521,98616.0,98615.0,0.08120714]
[1740156260530,0.1529571,98616.0,98615.0,0.08120714]
[1740156261685,0.1529571,98616.0,98615.0,0.08420714]
[1740156261898,0.1529571,98616.0,98615.0,0.08120714]
[1740156262144,0.1529571,98616.0,98615.0,0.08320714]
[1740156262679,0.25560279,98616.0,98615.0,0.08320714]
[1740156262946,1.67076254,98616.0,98615.0,1.4e-07]
[1740156263224,0.20454085,98615.0,98603.0,0.08120714]
[1740156263426,1.57829839,98616.0,98603.0,0.08120714]
[1740156263427,0.399923,98604.0,98603.0,0.08120714]
[1740156263639,0.53710954,98604.0,98603.0,1.4e-07]
[1740156263853,1.71490954,98604.0,98603.0,1.4e-07]
[1740156264290,1.71490954,98604.0,98584.0,0.08120714]
[1740156264291,0.302149,98587.0,98584.0,0.08120714]
[1740156264501,1.58259469,98587.0,98584.0,0.08120714]
[1740156264712,1.66339469,98587.0,98584.0,0.08120714]
[1740156264926,1.69793554,98587.0,98586.0,9.1e-07]
[1740156265586,1.70093554,98587.0,98586.0,9.1e-07]
[1740156266195,1.70793554,98587.0,98586.0,9.1e-07]
[1740156266406,1.72326281,98587.0,98586.0,9.1e-07]
[1740156266618,1.73976947,98587.0,98586.0,9.1e-07]
[1740156266810,1.70522862,98587.0,98586.0,9.1e-07]
[1740156267421,1.73976947,98587.0,98586.0,9.1e-07]
[1740156268318,1.72961076,98587.0,98586.0,9.1e-07]
[1740156269267,1.74961076,98587.0,98586.0,9.1e-07]
[1740156269688,1.72961076,98587.0,98586.0,9.1e-07]
[1740156269886,1.74961076,98587.0,98586.0,9.1e-07]
[1740156271041,1.74661076,98587.0,98586.0,9.1e-07]
[1740156271222,1.75261076,98587.0,98586.0,0.00100091]
[1740156271424,1.73261076,98587.0,98586.0,0.00100091]
[1740156271884,1.71806991,98587.0,98586.0,0.00100091]
[1740156272063,1.71106991,98587.0,98586.0,0.00100091]
[1740156272263,1.71806991,98587.0,98586.0,0.00100091]
[1740156272927,1.71106991,98587.0,98586.0,0.00100091]
[1740156273116,1.71806991,98587.0,98586.0,0.00100091]
[1740156273321,1.71172196,98587.0,98586.0,0.00100091]
[1740156274313,0.33669285,98585.0,98584.0,5e-08]
[1740156274468,0.43933854,98585.0,98584.0,5e-08]
[1740156275569,0.44633854,98585.0,98584.0,5e-08]
[1740156275801,0.45389415,98585.0,98584.0,5e-08]
[1740156276823,0.45889415,98585.0,98584.0,5e-08]
[1740156277278,1.63669415,98585.0,98584.0,5e-08]
[1740156277468,1.65669415,98585.0,98584.0,5e-08]
[1740156277670,1.65669415,98585.0,98564.0,0.08120714]
[1740156277671,0.302183,98565.0,98564.0,0.08120714]
[1740156277909,1.58262869,98565.0,98564.0,0.08133685]
[1740156278134,1.66582869,98565.0,98564.0,0.08133685]
[1740156278342,1.6733843,98565.0,98564.0,0.08133685]
[1740156278939,1.68554619,98565.0,98564.0,0.08133685]
[1740156279471,1.68354619,98565.0,98564.0,8.5e-07]
[1740156279768,1.72508704,98565.0,98564.0,0.00100085]
[1740156279966,1.74508704,98565.0,98564.0,8.5e-07]
[1740156280205,0.302194,98558.0,98557.0,0.0016992]
[1740156280391,0.40483969,98558.0,98557.0,0.00213181]
[1740156281444,0.43938054,98558.0,98557.0,0.00213181]
[1740156281879,0.44693615,98558.0,98557.0,0.00213181]
[1740156282095,0.4732877,98558.0,98557.0,0.00213181]
[1740156282577,0.4802877,98558.0,98557.0,0.00213181]
[1740156283497,0.49045066,98558.0,98557.0,0.00213181]
[1740156283708,1.66825066,98558.0,98557.0,0.00213181]
[1740156284384,1.67525066,98558.0,98557.0,0.00213181]
[1740156284610,1.66825066,98558.0,98557.0,0.00213181]
[1740156284816,1.67525066,98558.0,98557.0,0.00213181]
[1740156285036,1.6650877,98558.0,98557.0,0.00213181]
[1740156285215,1.6510877,98558.0,98557.0,0.00213181]
[1740156285420,1.6580877,98558.0,98557.0,0.00213181]
[1740156285673,1.6650877,98558.0,98557.0,0.00213181]
[1740156286083,1.67283918,98558.0,98557.0,0.00213181]
[1740156286292,1.63829833,98558.0,98557.0,0.00213181]
[1740156287510,1.67283918,98558.0,98557.0,8.1e-07]
[1740156287716,1.67810121,98558.0,98557.0,8.1e-07]
[1740156288524,1.68826422,98558.0,98557.0,8.1e-07]
[1740156288728,0.152203,98552.0,98551.0,0.00016081]
[1740156288911,0.41938954,98552.0,98551.0,0.00016081]
[1740156289114,0.02,98546.0,98544.0,5.5e-07]
[1740156289316,1.58265969,98545.0,98544.0,5.5e-07]
[1740156289939,1.59917425,98545.0,98544.0,5.5e-07]
[1740156290921,1.60672986,98545.0,98544.0,5.5e-07]
[1740156291126,1.5902153,98545.0,98544.0,5.5e-07]
[1740156291331,1.58265969,98545.0,98544.0,5.5e-07]
[1740156291482,1.58965969,98545.0,98544.0,5.5e-07]
[1740156291693,1.59722516,98545.0,98544.0,5.5e-07]
[1740156291870,1.62074174,98545.0,98544.0,5.5e-07]
[1740156295399,1.61057769,98545.0,98544.0,5.5e-07]
[1740156296250,1.60357769,98545.0,98544.0,5.5e-07]